fUST/lending_fUST_20240312
["ID","MTS","AMOUNT","RATE_DAILY","PERIOD"]
[318329540,1710179136259,-500.0,0.00015497,2]
[318329541,1710179136284,-500.0,0.00015497,2]
[318329542,1710179136311,-500.0,0.00015497,2]
[318329543,1710179136334,-504.99996651,0.00015497,2]
[318329544,1710179136358,-500.0,0.00015497,2]
[318329545,1710179136463,-500.0,0.00015497,2]
[318329546,1710179136487,-500.0,0.00015497,2]
[318329547,1710179136510,-500.0,0.00015497,2]
[318329548,1710179136540,-500.0,0.00015497,2]
[318329549,1710179136566,-500.0,0.00015497,2]
[318329550,1710179136589,-500.0,0.00015497,2]
[318329551,1710179136613,-500.0,0.00015497,2]
[318329552,1710179136636,-500.0,0.00015497,2]
[318329553,1710179136658,-500.0,0.00015497,2]
[318329554,1710179136682,-20504.55331016,0.00015498,2]
[318329555,1710179136705,-404.45303566,0.00015498,2]
[318329556,1710179136732,-29865.73727637,0.00015498,2]
[318329658,1710179435519,-704.15336957,0.00014493,2]
[318329659,1710179435529,-155.13652014,0.00014494,2]
[318329660,1710179435538,-183.175627,0.00014498,2]
[318329661,1710179435549,-2000.0,0.00014755,2]
[318329662,1710179435558,-276.70436895,0.00015397,2]
[318329663,1710179435568,-155.357,0.0001549,2]
[318329664,1710179435578,-300.0,0.00015495,2]
[318329665,1710179435587,-500.0,0.00015495,2]
[318329666,1710179435608,-500.0,0.00015495,2]
[318329667,1710179435618,-419.88164317,0.00015496,2]
[318329668,1710179435632,-80.11835683,0.00015496,2]
[318329669,1710179435643,-500.0,0.00015496,2]
[318329670,1710179435653,-640.58773603,0.00015496,2]
[318329671,1710179435664,-425.28297113,0.00015496,2]
[318329672,1710179435674,-220.83436088,0.00015496,2]
[318329674,1710179435685,-500.0,0.00015496,2]
[318329676,1710179435695,-500.0,0.00015496,2]
[318329677,1710179435706,-500.0,0.00015496,2]
[318329680,1710179435716,-500.0,0.00015496,2]
[318329682,1710179435725,-500.0,0.00015496,2]
[318329684,1710179435735,-500.0,0.00015496,2]
[318329686,1710179435744,-673.29,0.00015496,2]
[318329688,1710179435755,-673.29,0.00015496,2]
[318329690,1710179435764,-798.09,0.00015496,2]
[318329692,1710179435774,-798.09,0.00015496,2]
[318329694,1710179435784,-500.0,0.00015496,2]
[318329696,1710179435794,-163.33605902,0.00015496,2]
[318329698,1710179435803,-500.0,0.00015496,2]
[318329700,1710179435813,-500.0,0.00015496,2]
[318329702,1710179435824,-500.0,0.00015496,2]
[318329704,1710179435834,-384.27053467,0.00015496,2]
[318329706,1710179435848,-115.72946533,0.00015496,2]
[318329708,1710179435859,-878.74,0.00015496,2]
[318329710,1710179435869,-878.74,0.00015496,2]
[318329712,1710179435879,-551.32954958,0.00015496,2]
[318329714,1710179435888,-500.0,0.00015496,2]
[318329716,1710179435897,-500.0,0.00015496,2]
[318329718,1710179435908,-72.75268231,0.00015496,2]
[318329721,1710179435921,-427.24731769,0.00015496,2]
[318329722,1710179435930,-500.0,0.00015496,2]
[318329724,1710179435940,-500.0,0.00015496,2]
[318329727,1710179435951,-500.0,0.00015496,2]
[318329729,1710179435961,-500.0,0.00015496,2]
[318329731,1710179435971,-500.0,0.00015496,2]
[318329733,1710179435980,-500.0,0.00015496,2]
[318329734,1710179435990,-894.7,0.00015496,2]
[318329737,1710179436000,-894.7,0.00015496,2]
[318329739,1710179436011,-500.0,0.00015496,2]
[318329741,1710179436021,-501.07977719,0.00015496,2]
[318329743,1710179436030,-500.0,0.00015497,2]
[318329745,1710179436040,-500.0,0.00015497,2]
[318329747,1710179436051,-500.0,0.00015497,2]
[318329749,1710179436060,-458.67954255,0.00015497,2]
[318329763,1710179436184,-464.41137053,0.00015497,2]
[318329765,1710179436198,-500.0,0.00015497,2]
[318329767,1710179436208,-500.0,0.00015497,2]
[318329769,1710179436217,-500.0,0.00015497,2]
[318329771,1710179436227,-500.0,0.00015497,2]
[318329773,1710179436236,-500.0,0.00015497,2]
[318329775,1710179436246,-500.0,0.00015497,2]
[318329777,1710179436256,-500.0,0.00015497,2]
[318329779,1710179436265,-500.0,0.00015497,2]
[318329781,1710179436275,-500.0,0.00015497,2]
[318329783,1710179436284,-500.0,0.00015497,2]
[318329785,1710179436294,-500.0,0.00015497,2]
[318329787,1710179436303,-500.0,0.00015497,2]
[318329789,1710179436316,-500.0,0.00015497,2]
[318329791,1710179436325,-500.0,0.00015497,2]
[318329793,1710179436335,-353.54654477,0.00015497,2]
[318329795,1710179436344,-500.0,0.00015497,2]
[318329797,1710179436354,-437.08544707,0.00015497,2]
[318329800,1710179436365,-500.0,0.00015497,2]
[318329802,1710179436375,-500.0,0.00015497,2]
[318329803,1710179436385,-500.0,0.00015497,2]
[318329805,1710179436394,-455.77297718,0.00015497,2]
[318329808,1710179436408,-44.22702282,0.00015497,2]
[318329810,1710179436418,-500.0,0.00015497,2]
[318329812,1710179436428,-500.0,0.00015497,2]
[318329814,1710179436440,-398.10349835,0.00015497,2]
[318329816,1710179436449,-673.29,0.00015497,2]
[318329818,1710179436458,-673.29,0.00015497,2]
[318329820,1710179436468,-673.29,0.00015497,2]
[318329822,1710179436478,-673.29,0.00015497,2]
[318329824,1710179436488,-673.29,0.00015497,2]
[318329826,1710179436498,-673.29,0.00015497,2]
[318329828,1710179436507,-673.29,0.00015497,2]
[318329830,1710179436516,-673.29,0.00015497,2]
[318329832,1710179436526,-673.29,0.00015497,2]
[318329834,1710179436536,-139.08151256,0.00015497,2]
[318329837,1710179436548,-534.20848744,0.00015497,2]
[318329839,1710179436558,-673.29,0.00015497,2]
[318329841,1710179436568,-221.23521902,0.00015497,2]
[318329940,1710179438731,-298.14279674,0.00015495,2]
[318329942,1710179438740,-452.05478098,0.00015497,2]
[318329944,1710179438750,-673.29,0.00015497,2]
[318329946,1710179438759,-673.29,0.00015497,2]
[318329947,1710179438768,-673.29,0.00015497,2]
[318329950,1710179438780,-640.44090682,0.00015497,2]
[318330046,1710179443621,-503.54098187,0.00015495,2]
[318330047,1710179443632,-32.84909318,0.00015497,2]
[318330049,1710179443641,-673.29,0.00015497,2]
[318330051,1710179443651,-673.29,0.00015497,2]
[318330053,1710179443660,-673.29,0.00015497,2]
[318330054,1710179443670,-83.86500928,0.00015497,2]
[318330056,1710179443684,-589.42499072,0.00015497,2]
[318330058,1710179443696,-11.51089397,0.00015497,2]
[318330060,1710179443708,-312.2633,0.00015497,2]
[318330062,1710179443720,-349.51580603,0.00015497,2]
[318330063,1710179443732,-673.41795117,0.00015497,2]
[318330064,1710179443745,-798.09,0.00015497,2]
[318330065,1710179443756,-798.09,0.00015497,2]
[318330066,1710179443767,-798.09,0.00015497,2]
[318330067,1710179443778,-798.09,0.00015497,2]
[318330068,1710179443788,-798.09,0.00015497,2]
[318330069,1710179443798,-798.09,0.00015497,2]
[318330070,1710179443808,-798.09,0.00015497,2]
[318330071,1710179443818,-798.09,0.00015497,2]
[318330072,1710179443829,-798.09,0.00015497,2]
[318330073,1710179443841,-798.09,0.00015497,2]
[318330074,1710179443852,-798.09,0.00015497,2]
[318330075,1710179443863,-798.09,0.00015497,2]
[318330076,1710179443872,-798.09,0.00015497,2]
[318330077,1710179443882,-798.09,0.00015497,2]
[318330078,1710179443892,-798.09,0.00015497,2]
[318330079,1710179443901,-798.09,0.00015497,2]
[318330080,1710179443910,-798.09,0.00015497,2]
[318330081,1710179443921,-798.09,0.00015497,2]
[318330082,1710179443930,-798.09,0.00015497,2]
[318330083,1710179443940,-798.09,0.00015497,2]
[318330084,1710179443950,-798.09,0.00015497,2]
[318330085,1710179443959,-798.28987319,0.00015497,2]
[318330086,1710179443968,-500.0,0.00015497,2]
[318330087,1710179443978,-500.0,0.00015497,2]
[318330088,1710179443987,-500.0,0.00015497,2]
[318330089,1710179443996,-522.36487444,0.00015497,2]
[318330090,1710179444006,-169.02516738,0.00015497,2]
[318330091,1710179444016,-878.74,0.00015497,2]
[318330092,1710179444026,-878.74,0.00015497,2]
[318330093,1710179444035,-878.74,0.00015497,2]
[318330094,1710179444044,-878.74,0.00015497,2]
[318330095,1710179444053,-878.74,0.00015497,2]
[318330096,1710179444064,-878.74,0.00015497,2]
[318330097,1710179444073,-878.74,0.00015497,2]
[318330098,1710179444082,-878.74,0.00015497,2]
[318330099,1710179444091,-878.74,0.00015497,2]
[318330100,1710179444100,-878.74,0.00015497,2]
[318330101,1710179444109,-878.74,0.00015497,2]
[318330102,1710179444118,-878.74,0.00015497,2]
[318330103,1710179444127,-878.74,0.00015497,2]
[318330104,1710179444137,-878.74,0.00015497,2]
[318330105,1710179444146,-878.74,0.00015497,2]
[318330106,1710179444155,-878.74,0.00015497,2]
[318330107,1710179444165,-878.74,0.00015497,2]
[318330108,1710179444174,-878.74,0.00015497,2]
[318330109,1710179444185,-878.74,0.00015497,2]
[318330110,1710179444196,-878.74,0.00015497,2]
[318330111,1710179444210,-878.74,0.00015497,2]
[318330112,1710179444220,-878.75489669,0.00015497,2]
[318330113,1710179444229,-572.68293407,0.00015497,2]
[318330114,1710179444239,-500.0,0.00015497,2]
[318330115,1710179444248,-500.0,0.00015497,2]
[318330116,1710179444257,-500.0,0.00015497,2]
[318330117,1710179444266,-500.0,0.00015497,2]
[318330118,1710179444276,-343.44636333,0.00015497,2]
[318330119,1710179444285,-500.0,0.00015497,2]
[318330120,1710179444295,-500.0,0.00015497,2]
[318330121,1710179444305,-500.0,0.00015497,2]
[318330122,1710179444315,-500.0,0.00015497,2]
[318330123,1710179444324,-500.0,0.00015497,2]
[318330124,1710179444334,-500.0,0.00015497,2]
[318330125,1710179444343,-500.0,0.00015497,2]
[318330126,1710179444353,-500.0,0.00015497,2]
[318330127,1710179444362,-500.0,0.00015497,2]
[318330128,1710179444372,-500.0,0.00015497,2]
[318330129,1710179444381,-500.0,0.00015497,2]
[318330130,1710179444390,-500.0,0.00015497,2]
[318330131,1710179444399,-500.0,0.00015497,2]
[318330132,1710179444409,-500.0,0.00015497,2]
[318330133,1710179444419,-500.0,0.00015497,2]
[318330134,1710179444428,-500.0,0.00015497,2]
[318330135,1710179444437,-500.0,0.00015497,2]
[318330136,1710179444448,-271.0989111,0.00015497,2]
[318330137,1710179444458,-15804.5332351,0.00015498,2]
[318330138,1710179444470,-1978.22961423,0.00015498,2]
[318330139,1710179444480,-5603.61533052,0.00015498,2]
[318330140,1710179444523,-2396.38466948,0.00015498,2]
[318330141,1710179444533,-364.42641465,0.00015498,2]
[318330142,1710179444543,-2762.95044002,0.00015498,2]
[318330143,1710179444553,-538.93657172,0.00015498,2]
[318330144,1710179444563,-310.02015132,0.00015498,2]
[318330145,1710179444572,-290.38682753,0.00015498,2]
[318330146,1710179444582,-98.38919583,0.00015498,2]
[318330147,1710179444593,-211.6331488,0.00015498,2]
[318330148,1710179444602,-353.48792493,0.00015498,2]
[318330149,1710179444611,-706.82478228,0.00015498,2]
[318330150,1710179444623,-187.87521772,0.00015498,2]
[318330151,1710179444632,-894.7,0.00015498,2]
[318330152,1710179444641,-15250.36137475,0.00015499,2]
[318330153,1710179444651,-500.0,0.00015499,2]
[318330154,1710179444660,-500.0,0.00015499,2]
[318330155,1710179444669,-500.0,0.00015499,2]
[318330156,1710179444679,-413.09895582,0.00015499,2]
[318330157,1710179444688,-500.0,0.00015499,2]
[318330158,1710179444697,-500.0,0.00015499,2]
[318330159,1710179444706,-500.0,0.00015499,2]
[318330160,1710179444715,-500.0,0.00015499,2]
[318330161,1710179444724,-500.0,0.00015499,2]
[318330162,1710179444734,-500.0,0.00015499,2]
[318330163,1710179444744,-500.0,0.00015499,2]
[318330164,1710179444753,-500.0,0.00015499,2]
[318330165,1710179444762,-500.0,0.00015499,2]
[318330166,1710179444772,-213.15069953,0.00015499,2]
[318330167,1710179444782,-500.0,0.00015499,2]
[318330168,1710179444791,-500.0,0.00015499,2]
[318330169,1710179444800,-500.0,0.00015499,2]
[318330170,1710179444809,-500.0,0.00015499,2]
[318330171,1710179444819,-627.66410724,0.00015499,2]
[318330172,1710179444830,-155.17211748,0.00015499,2]
[318330173,1710179444842,-894.7,0.00015499,2]
[318330174,1710179444851,-894.7,0.00015499,2]
[318330175,1710179444861,-894.7,0.00015499,2]
[318330176,1710179444871,-894.7,0.00015499,2]
[318330177,1710179444880,-894.7,0.00015499,2]
[318330178,1710179444889,-894.7,0.00015499,2]
[318330179,1710179444898,-894.7,0.00015499,2]
[318330180,1710179444908,-894.7,0.00015499,2]
[318330181,1710179444916,-894.7,0.00015499,2]
[318330182,1710179444926,-894.7,0.00015499,2]
[318330183,1710179444936,-894.7,0.00015499,2]
[318330184,1710179444946,-894.7,0.00015499,2]
[318330185,1710179444956,-894.7,0.00015499,2]
[318330186,1710179444965,-894.7,0.00015499,2]
[318330187,1710179444974,-894.7,0.00015499,2]
[318330188,1710179444983,-894.7,0.00015499,2]
[318330189,1710179444992,-894.7,0.00015499,2]
[318330190,1710179445001,-894.7,0.00015499,2]
[318330191,1710179445010,-894.7,0.00015499,2]
[318330192,1710179445019,-894.82,0.00015499,2]
[318330193,1710179445028,-30529.23476185,0.000155,2]
[318330230,1710179446720,-528.65561539,0.00015498,2]
[318330233,1710179446800,-10.72914374,0.000155,2]
[318330235,1710179446813,-47845.03052667,0.000155,2]
[318330255,1710179672871,2865.05000096,0.00027,120]
[318330257,1710179798394,2016.66372506,0.0001909,9]
[318330258,1710179838512,262.48262514,0.00015498,7]
[318330261,1710180204689,3717.15781728,0.00027,120]
[318330290,1710180633177,-704.15336957,0.00014386,2]
[318330291,1710180633192,-183.175627,0.00014387,2]
[318330292,1710180633207,-2000.0,0.00014792,2]
[318330293,1710180633218,-1066.02839371,0.00014978,2]
[318330294,1710180633228,-164.96638708,0.00015394,2]
[318330295,1710180633238,-407.49036024,0.00015483,2]
[318330296,1710180633248,-309.86338182,0.00015483,2]
[318330297,1710180633258,-300.0,0.00015493,2]
[318330298,1710180633268,-500.0,0.00015494,2]
[318330300,1710180633280,-500.0,0.00015494,2]
[318330303,1710180633291,-500.0,0.00015494,2]
[318330304,1710180633301,-500.0,0.00015494,2]
[318330305,1710180633311,-550.39882289,0.00015494,2]
[318330306,1710180633320,-500.0,0.00015494,2]
[318330307,1710180633330,-500.0,0.00015494,2]
[318330308,1710180633340,-296.59442422,0.00015494,2]
[318330309,1710180633353,-51.2875353,0.00015494,2]
[318330310,1710180633363,-500.0,0.00015494,2]
[318330311,1710180633372,-500.0,0.00015494,2]
[318330312,1710180633382,-500.0,0.00015494,2]
[318330313,1710180633392,-500.0,0.00015494,2]
[318330314,1710180633401,-500.0,0.00015494,2]
[318330315,1710180633410,-500.0,0.00015494,2]
[318330316,1710180633419,-190.33,0.00015494,2]
[318330317,1710180633428,-500.0,0.00015494,2]
[318330318,1710180633437,-500.0,0.00015494,2]
[318330319,1710180633446,-500.0,0.00015494,2]
[318330320,1710180633459,-500.0,0.00015494,2]
[318330321,1710180633468,-500.0,0.00015494,2]
[318330322,1710180633478,-500.0,0.00015494,2]
[318330323,1710180633487,-500.0,0.00015494,2]
[318330324,1710180633496,-500.0,0.00015494,2]
[318330325,1710180633505,-500.0,0.00015494,2]
[318330326,1710180633514,-248.33151953,0.00015494,2]
[318330327,1710180633524,-500.0,0.00015494,2]
[318330328,1710180633533,-346.47485862,0.00015494,2]
[318330329,1710180633542,-500.0,0.00015494,2]
[318330330,1710180633551,-500.0,0.00015494,2]
[318330331,1710180633560,-500.0,0.00015494,2]
[318330332,1710180633569,-507.84000334,0.00015494,2]
[318330333,1710180633578,-500.63410129,0.00015494,2]
[318330334,1710180633587,-506.69209963,0.00015494,2]
[318330335,1710180633596,-508.24921668,0.00015494,2]
[318330336,1710180633605,-500.0,0.00015494,2]
[318330337,1710180633614,-500.0,0.00015494,2]
[318330338,1710180633623,-500.0,0.00015494,2]
[318330339,1710180633632,-500.0,0.00015494,2]
[318330340,1710180633641,-196.56353078,0.00015494,2]
[318330341,1710180633654,-303.43646922,0.00015494,2]
[318330342,1710180633663,-500.0,0.00015494,2]
[318330343,1710180633672,-500.0,0.00015494,2]
[318330344,1710180633682,-65.5408622,0.00015494,2]
[318330479,1710180640904,-558.48918801,0.00015493,2]
[318330480,1710180640915,-557.16662701,0.00015494,2]
[318330481,1710180640924,-500.0,0.00015494,2]
[318330482,1710180640934,-439.10804501,0.00015494,2]
[318330483,1710180640944,-502.7384217,0.00015494,2]
[318330484,1710180640954,-500.0,0.00015494,2]
[318330485,1710180640964,-19.67540836,0.00015494,2]
[318330486,1710180640977,-249.78946038,0.00015494,2]
[318330487,1710180640986,-500.0,0.00015494,2]
[318330488,1710180640996,-500.0,0.00015494,2]
[318330489,1710180641006,-500.0,0.00015494,2]
[318330490,1710180641015,-458.78034549,0.00015494,2]
[318330491,1710180641028,-46.50495953,0.00015494,2]
[318330492,1710180641038,-500.0,0.00015494,2]
[318330493,1710180641048,-230.97742246,0.00015494,2]
[318330494,1710180641058,-500.0,0.00015494,2]
[318330495,1710180641067,-1303.65,0.00015494,2]
[318330496,1710180641076,-500.0,0.00015494,2]
[318330497,1710180641086,-1303.65,0.00015494,2]
[318330498,1710180641095,-500.0,0.00015494,2]
[318330499,1710180641105,-1303.65,0.00015494,2]
[318330500,1710180641114,-500.0,0.00015494,2]
[318330501,1710180641124,-500.0,0.00015494,2]
[318330502,1710180641133,-500.0,0.00015494,2]
[318330503,1710180641143,-500.32372021,0.00015494,2]
[318330504,1710180641153,-500.0,0.00015494,2]
[318330505,1710180641168,-565.33071785,0.00015494,2]
[318330506,1710180641178,-786.35,0.00015494,2]
[318330507,1710180641187,-786.35,0.00015494,2]
[318330508,1710180641197,-786.35,0.00015494,2]
[318330509,1710180641207,-650.49,0.00015494,2]
[318330510,1710180641216,-650.49,0.00015494,2]
[318330511,1710180641227,-507.09509386,0.00015494,2]
[318330512,1710180641236,-650.49,0.00015494,2]
[318330513,1710180641246,-35247.62,0.00015494,2]
[318330514,1710180641257,-1805.11326821,0.00015494,2]
[318330515,1710180641269,-9185.60198011,0.00015494,2]
[318330516,1710180641281,-24256.90475168,0.00015494,2]
[318330517,1710180641290,-500.0,0.00015494,2]
[318330518,1710180641299,-500.0,0.00015494,2]
[318330519,1710180641309,-500.0,0.00015494,2]
[318330520,1710180641319,-500.0,0.00015494,2]
[318330521,1710180641329,-500.0,0.00015494,2]
[318330522,1710180641339,-500.0,0.00015494,2]
[318330523,1710180641349,-500.0,0.00015494,2]
[318330524,1710180641359,-3507.99,0.00015494,2]
[318330525,1710180641369,-3507.99,0.00015494,2]
[318330526,1710180641378,-3507.99,0.00015494,2]
[318330527,1710180641388,-315.15031012,0.00015494,2]
[318330528,1710180641398,-500.0,0.00015494,2]
[318330529,1710180641407,-244.703689,0.00015494,2]
[318330530,1710180641417,-659.1906952,0.00015494,2]
[318330531,1710180641430,-251.01643281,0.00015494,2]
[318330532,1710180641457,-302.8671087,0.00015494,2]
[318330566,1710180643770,-155.99696445,0.00015493,2]
[318330568,1710180643780,-613.12576329,0.00015494,2]
[318330570,1710180643789,-1826.2,0.00015494,2]
[318330572,1710180643798,-839.25090992,0.00015494,2]
[318330574,1710180643810,-986.94909008,0.00015494,2]
[318330576,1710180643819,-500.0,0.00015494,2]
[318330578,1710180643828,-222.09729159,0.00015494,2]
[318330580,1710180643838,-369.70287682,0.00015494,2]
[318330584,1710180643849,-130.29712318,0.00015494,2]
[318330587,1710180643858,-500.0,0.00015494,2]
[318330589,1710180643867,-74.70287632,0.00015494,2]
[318330592,1710180643879,-425.29712368,0.00015494,2]
[318330594,1710180643888,-545.70287632,0.00015494,2]
[318330596,1710180643899,-10.43712368,0.00015494,2]
[318330598,1710180643908,-556.14,0.00015494,2]
[318330601,1710180643916,-556.14,0.00015494,2]
[318330603,1710180643925,-500.0,0.00015494,2]
[318330605,1710180643934,-500.0,0.00015494,2]
[318330607,1710180643943,-117.07743668,0.00015494,2]
[318330609,1710180643955,-382.92256332,0.00015494,2]
[318330611,1710180643966,-501.54342069,0.00015494,2]
[318330613,1710180643974,-366.35129438,0.00015494,2]
[318330615,1710180643986,-256.79566452,0.00015494,2]
[318330617,1710180643995,-500.0,0.00015494,2]
[318330619,1710180644003,-500.0,0.00015494,2]
[318330621,1710180644012,-500.0,0.00015494,2]
[318330623,1710180644021,-500.0,0.00015494,2]
[318330625,1710180644030,-500.0,0.00015494,2]
[318330627,1710180644039,-618.81,0.00015494,2]
[318330629,1710180644049,-618.81,0.00015494,2]
[318330631,1710180644058,-618.81,0.00015494,2]
[318330633,1710180644067,-500.0,0.00015494,2]
[318330635,1710180644076,-500.0,0.00015494,2]
[318330637,1710180644085,-498.98997374,0.00015494,2]
[318331035,1710180648013,-500.0,0.00015493,2]
[318331037,1710180648022,-500.0,0.00015493,2]
[318331039,1710180648032,-278.291279,0.00015493,2]
[318331041,1710180648042,-1.01002626,0.00015494,2]
[318331043,1710180648051,-500.0,0.00015494,2]
[318331045,1710180648060,-500.0,0.00015494,2]
[318331047,1710180648069,-474.71007273,0.00015494,2]
[318331049,1710180648078,-500.0,0.00015494,2]
[318331051,1710180648089,-500.0,0.00015494,2]
[318331052,1710180648099,-500.0,0.00015494,2]
[318331054,1710180648109,-500.0,0.00015494,2]
[318331056,1710180648119,-500.0,0.00015494,2]
[318331058,1710180648128,-500.0,0.00015494,2]
[318331060,1710180648137,-500.0,0.00015494,2]
[318331063,1710180648147,-500.0,0.00015494,2]
[318331065,1710180648158,-598.0714041,0.00015494,2]
[318331066,1710180648167,-500.73386564,0.00015494,2]
[318331068,1710180648177,-500.0,0.00015494,2]
[318331070,1710180648188,-500.0,0.00015494,2]
[318331072,1710180648198,-500.0,0.00015494,2]
[318331074,1710180648209,-500.0,0.00015494,2]
[318331076,1710180648224,-500.0,0.00015494,2]
[318331078,1710180648241,-500.60217789,0.00015494,2]
[318331080,1710180648251,-500.0,0.00015494,2]
[318331082,1710180648262,-500.0,0.00015494,2]
[318331084,1710180648273,-500.0,0.00015494,2]
[318331086,1710180648283,-297.36797588,0.00015494,2]
[318331089,1710180648298,-202.63202412,0.00015494,2]
[318331091,1710180648308,-500.0,0.00015494,2]
[318331093,1710180648317,-500.0,0.00015494,2]
[318331095,1710180648326,-2694.84140707,0.00015494,2]
[318331097,1710180648338,-1375.59859293,0.00015494,2]
[318331099,1710180648348,-4070.44,0.00015494,2]
[318331101,1710180648359,-4070.44,0.00015494,2]
[318331103,1710180648369,-500.0,0.00015494,2]
[318331105,1710180648380,-500.0,0.00015494,2]
[318331107,1710180648391,-500.0,0.00015494,2]
[318331109,1710180648401,-937.76,0.00015494,2]
[318331111,1710180648412,-937.76,0.00015494,2]
[318331113,1710180648422,-937.76,0.00015494,2]
[318331115,1710180648431,-500.0,0.00015494,2]
[318331117,1710180648441,-500.0,0.00015494,2]
[318331119,1710180648451,-500.0,0.00015494,2]
[318331122,1710180648463,-500.0,0.00015494,2]
[318331124,1710180648474,-500.0,0.00015494,2]
[318331126,1710180648483,-500.0,0.00015494,2]
[318331127,1710180648493,-500.0,0.00015494,2]
[318331129,1710180648504,-500.0,0.00015494,2]
[318331131,1710180648514,-500.0,0.00015494,2]
[318331133,1710180648524,-500.0,0.00015494,2]
[318331135,1710180648535,-500.0,0.00015494,2]
[318331137,1710180648545,-500.0,0.00015494,2]
[318331139,1710180648555,-500.0,0.00015494,2]
[318331141,1710180648564,-502.5532779,0.00015494,2]
[318331144,1710180648574,-500.0,0.00015494,2]
[318331153,1710180648663,-474.52606815,0.00015494,2]
[318331155,1710180648673,-375.45221596,0.00015494,2]
[318331157,1710180648684,-501.08878075,0.00015494,2]
[318331159,1710180648694,-621.04067948,0.00015494,2]
[318331162,1710180648704,-500.0,0.00015494,2]
[318331164,1710180648717,-500.0,0.00015494,2]
[318331165,1710180648726,-500.0,0.00015494,2]
[318331167,1710180648736,-500.0,0.00015494,2]
[318331169,1710180648746,-500.0,0.00015494,2]
[318331171,1710180648755,-500.0,0.00015494,2]
[318331174,1710180648766,-3414.35,0.00015494,2]
[318331175,1710180648776,-504.16973622,0.00015494,2]
[318331178,1710180648785,-3414.35,0.00015494,2]
[318331179,1710180648795,-1135.59,0.00015494,2]
[318331181,1710180648805,-1135.59,0.00015494,2]
[318331184,1710180648814,-501.00763322,0.00015495,2]
[318331186,1710180648824,-500.94478771,0.00015495,2]
[318331187,1710180648835,-500.73258572,0.00015495,2]
[318331190,1710180648845,-501.27920038,0.00015495,2]
[318331191,1710180648855,-500.90347848,0.00015495,2]
[318331193,1710180648864,-500.92741149,0.00015495,2]
[318331195,1710180648874,-500.0,0.00015495,2]
[318331197,1710180648884,-500.0,0.00015495,2]
[318331199,1710180648894,-500.0,0.00015495,2]
[318331202,1710180648906,-257.35041391,0.00015495,2]
[318331203,1710180648916,-299.05381443,0.00015495,2]
[318331205,1710180648925,-500.0,0.00015495,2]
[318331208,1710180648935,-500.0,0.00015495,2]
[318331210,1710180648945,-756.93,0.00015495,2]
[318331212,1710180648958,-756.93,0.00015495,2]
[318331214,1710180648972,-501.0584338,0.00015495,2]
[318331216,1710180648982,-1371.49,0.00015495,2]
[318331218,1710180648992,-1371.49,0.00015495,2]
[318331220,1710180649002,-501.51686583,0.00015495,2]
[318331222,1710180649011,-500.0,0.00015495,2]
[318331224,1710180649021,-500.0,0.00015495,2]
[318331226,1710180649030,-500.0,0.00015495,2]
[318331228,1710180649039,-500.0,0.00015495,2]
[318331230,1710180649048,-500.0,0.00015495,2]
[318331232,1710180649057,-500.0,0.00015495,2]
[318331234,1710180649066,-500.0,0.00015495,2]
[318331236,1710180649075,-500.0,0.00015495,2]